bitfinex/quotes_BTCUSD_20241116
["timestamp","ask_amount","ask_price","bid_price","bid_amount"]
[1731753256180,0.1300578,91486.0,91485.0,0.19894625]
[1731753256404,0.0809578,91486.0,91485.0,0.19894625]
[1731753256617,0.0809578,91486.0,91485.0,0.29679122]
[1731753257067,0.0759578,91486.0,91485.0,0.19894625]
[1731753257287,0.0809578,91486.0,91485.0,0.19894625]
[1731753257502,0.0759578,91486.0,91485.0,0.19894625]
[1731753257987,0.0809578,91486.0,91485.0,0.19894625]
[1731753258225,0.0759578,91486.0,91485.0,0.19894625]
[1731753258458,0.0003578,91486.0,91485.0,0.22194625]
[1731753258685,0.0003578,91486.0,91485.0,0.54811004]
[1731753258922,0.00443653,91486.0,91485.0,0.54811004]
[1731753259162,0.0003578,91486.0,91485.0,0.74375685]
[1731753261408,0.0003578,91486.0,91485.0,0.74875685]
[1731753262631,0.0003578,91486.0,91485.0,0.74971442]
[1731753263453,0.0003578,91486.0,91485.0,0.79860975]
[1731753263664,0.0003578,91486.0,91485.0,0.55413311]
[1731753265584,0.0003578,91486.0,91485.0,0.55359613]
[1731753268415,0.1267578,91486.0,91485.0,0.7698344]
[1731753268619,0.1267578,91486.0,91485.0,0.72100213]
[1731753268828,0.13089465,91486.0,91485.0,0.34551285]
[1731753269074,0.1267578,91486.0,91485.0,0.34551285]
[1731753269279,0.1267578,91486.0,91485.0,0.19894625]
[1731753269642,0.13089465,91486.0,91485.0,0.22194625]
[1731753270269,0.1267578,91486.0,91485.0,0.22194625]
[1731753271544,0.1317578,91486.0,91485.0,0.22194625]
[1731753271941,0.13089465,91486.0,91485.0,0.22194625]
[1731753272176,0.13589465,91486.0,91485.0,0.22194625]
[1731753272611,0.1317578,91486.0,91485.0,0.22194625]
[1731753273047,0.13589465,91486.0,91485.0,0.22194625]
[1731753276619,0.13589465,91486.0,91484.0,0.08152434]
[1731753276825,0.13589465,91486.0,91485.0,0.152996]
[1731753277029,0.13089465,91486.0,91485.0,0.152996]
[1731753279094,0.00449465,91486.0,91485.0,0.152996]
[1731753279528,0.00449465,91486.0,91485.0,0.1538539]
[1731753282613,0.00449465,91486.0,91485.0,0.0445469]
[1731753282835,0.00449465,91486.0,91485.0,0.1538539]
[1731753283494,0.00449465,91486.0,91485.0,0.1101649]
[1731753284410,0.0003578,91486.0,91485.0,0.1101649]
[1731753285477,0.0003578,91486.0,91485.0,0.1331649]
[1731753290751,0.44516845,91491.0,91490.0,0.21382534]
[1731753292304,0.40198,91491.0,91490.0,0.21382534]
[1731753295200,0.40198,91491.0,91490.0,0.30034968]
[1731753297400,0.40198,91491.0,91490.0,0.61593657]
[1731753297401,0.30748816,91491.0,91490.0,0.61593657]
[1731753297615,0.30748816,91491.0,91490.0,0.85646486]
[1731753298043,0.30748816,91491.0,91490.0,1.05188458]
[1731753298311,0.30748816,91491.0,91490.0,0.85646486]
[1731753298533,0.30748816,91491.0,91490.0,0.9379892]
[1731753298760,0.25196204,91491.0,91490.0,0.85646486]
[1731753300292,0.25196204,91491.0,91490.0,0.61661618]
[1731753300514,0.25196204,91491.0,91490.0,0.45761223]
[1731753300734,0.25196204,91491.0,91490.0,0.77897418]
[1731753301192,0.25196204,91491.0,91490.0,0.97419884]
[1731753301845,0.25196204,91491.0,91490.0,0.77897418]
[1731753302988,0.25196204,91491.0,91490.0,0.6159255]
[1731753303208,0.25196204,91491.0,91490.0,0.97413731]
[1731753303414,0.25196204,91491.0,91490.0,0.77897418]
[1731753303634,0.25367784,91491.0,91490.0,0.97413731]
[1731753304087,0.25367784,91491.0,91490.0,0.77897418]
[1731753304504,0.20367784,91491.0,91490.0,0.77897418]
[1731753305571,0.20367784,91491.0,91490.0,0.6159255]
[1731753305786,0.20367784,91491.0,91490.0,0.60394654]
[1731753306011,0.20367784,91491.0,91490.0,0.36969786]
[1731753306249,0.20367784,91491.0,91490.0,0.38641223]
[1731753307321,0.20367784,91491.0,91490.0,0.40941223]
[1731753307561,0.20367784,91491.0,91490.0,0.55574654]
[1731753308210,0.20367784,91491.0,91490.0,0.40941223]
[1731753308430,0.20367784,91491.0,91490.0,0.24636355]
[1731753308643,0.20367784,91491.0,91490.0,0.32788789]
[1731753309752,0.20367784,91491.0,91490.0,0.40941223]
[1731753309967,0.20367784,91491.0,91490.0,0.32788789]
[1731753310391,0.20367784,91491.0,91490.0,0.19082534]
[1731753310839,0.20367784,91491.0,91490.0,0.109301]
[1731753311043,0.20367784,91491.0,91490.0,0.19082534]
[1731753311723,0.27887784,91491.0,91490.0,0.19082534]
[1731753311958,0.27887784,91491.0,91490.0,0.109301]
[1731753312182,0.28387784,91491.0,91490.0,0.109301]
[1731753312397,0.33707784,91491.0,91490.0,0.109301]
[1731753314635,0.28387784,91491.0,91490.0,0.22930652]
[1731753314843,0.28387784,91491.0,91490.0,0.19082534]
[1731753315501,0.28387784,91491.0,91490.0,0.19168314]
[1731753316346,0.28387784,91491.0,91490.0,0.21468314]
[1731753317655,0.28387784,91491.0,91490.0,0.1101588]
[1731753317862,0.33207784,91491.0,91490.0,0.1101588]
[1731753328034,0.20367784,91491.0,91490.0,0.21468314]
[1731753328243,0.20367784,91491.0,91490.0,0.1331588]
[1731753328679,0.20367784,91491.0,91490.0,0.21468314]
[1731753331359,0.20367784,91491.0,91490.0,0.23080999]
[1731753331586,0.20367784,91491.0,91490.0,0.39385867]
[1731753332015,0.20367784,91491.0,91490.0,0.39387181]
[1731753332469,0.20367784,91491.0,91490.0,0.23082313]
[1731753332716,0.20367784,91491.0,91490.0,0.39387181]
[1731753335848,0.20367784,91491.0,91490.0,0.61608]
[1731753336299,0.20367784,91491.0,91490.0,0.81140867]
[1731753336548,0.20367784,91491.0,91490.0,0.61608]
[1731753336773,0.20367784,91491.0,91490.0,0.61593324]
[1731753338096,0.20367784,91491.0,91490.0,0.61540323]
[1731753338539,0.20367784,91491.0,91490.0,0.81077593]
[1731753339632,0.20367784,91491.0,91490.0,0.64772725]
[1731753339846,0.20367784,91491.0,91490.0,0.81077593]
[1731753341654,0.20367784,91491.0,91490.0,0.8106586]
[1731753341881,0.20367784,91491.0,91490.0,0.08152434]
[1731753342101,0.20367784,91491.0,91490.0,0.16304868]
[1731753342553,0.20367784,91491.0,91490.0,0.27234968]
[1731753343215,0.20367784,91491.0,91490.0,0.109301]
[1731753343434,0.20367784,91491.0,91490.0,0.27234968]
[1731753346585,0.20017031,91491.0,91490.0,0.27234968]
[1731753347227,0.20017031,91491.0,91490.0,0.4189069]
[1731753348251,0.20017031,91491.0,91490.0,0.27234968]
[1731753349079,0.20017031,91491.0,91490.0,0.25585822]
[1731753349284,0.20017031,91491.0,91490.0,0.4189069]
[1731753349502,0.20017031,91491.0,91490.0,0.27234968]
[1731753351254,0.20017031,91491.0,91490.0,0.27406528]
[1731753351967,0.20017031,91491.0,91490.0,0.4695192]
[1731753352189,0.20017031,91491.0,91490.0,0.78805744]
[1731753354555,0.20017031,91491.0,91490.0,0.59260352]
[1731753354768,0.32547031,91491.0,91490.0,0.62507394]
[1731753355001,0.32547031,91491.0,91490.0,0.78812262]
[1731753355212,0.32547031,91491.0,91490.0,0.62507394]
[1731753355637,0.32547031,91491.0,91490.0,0.65773418]
[1731753355859,0.32547031,91491.0,91490.0,0.19254094]
[1731753356278,0.32547031,91491.0,91490.0,0.27406528]
[1731753356495,0.32547031,91491.0,91490.0,0.42072674]
[1731753356962,0.32547031,91491.0,91490.0,0.74181445]
[1731753357379,0.32547031,91491.0,91490.0,0.42072674]
[1731753357866,0.32547031,91491.0,91490.0,0.59517047]
[1731753357867,0.28037031,91491.0,91490.0,0.59517047]
[1731753358150,0.20017031,91491.0,91490.0,0.79071908]
[1731753359012,0.20017031,91491.0,91490.0,0.59517047]
[1731753359230,0.00524,91500.0,91499.0,0.10929]
[1731753359472,0.01024,91500.0,91499.0,0.19081434]
[1731753359701,0.09044,91500.0,91499.0,0.19081434]
[1731753361087,0.09044,91500.0,91499.0,0.20705725]
[1731753361319,0.09544,91500.0,91499.0,0.10929]
[1731753361779,0.09544,91500.0,91499.0,0.15324762]
[1731753362015,0.14124,91500.0,91499.0,0.15324762]
[1731753362705,0.25030255,91500.0,91499.0,0.15324762]
[1731753363580,0.1369,91496.0,91495.0,0.109295]
[1731753363790,0.24596255,91496.0,91495.0,0.109295]
[1731753368530,0.24596255,91496.0,91492.0,0.218596]
[1731753368531,0.01,91493.0,91492.0,0.109299]
[1731753368737,0.24096255,91493.0,91492.0,0.109299]
[1731753370149,0.1369,91491.0,91490.0,0.0017156]
[1731753370365,0.24596255,91491.0,91490.0,0.0017156]
[1731753372123,0.24596255,91491.0,91490.0,0.1110166]
[1731753375833,0.24096255,91491.0,91490.0,0.1110166]
[1731753380442,0.0811,91491.0,91490.0,0.1110166]
[1731753380677,0.005,91497.0,91496.0,0.109294]
[1731753380889,0.1267,91498.0,91494.0,0.218593]
[1731753380890,0.1367,91498.0,91497.0,0.109293]
[1731753383698,0.24576255,91498.0,91497.0,0.109293]
[1731753385048,0.24076255,91498.0,91497.0,0.109293]
[1731753387525,0.24247855,91498.0,91497.0,0.109293]
[1731753395413,0.001716,91498.0,91497.0,0.109293]
[1731753396156,0.001716,91498.0,91497.0,0.20690527]
[1731753396837,0.001716,91498.0,91497.0,0.132293]
[1731753398434,0.001716,91498.0,91497.0,0.27871141]
[1731753399317,0.001716,91498.0,91497.0,0.132293]
[1731753399832,0.001716,91498.0,91497.0,0.1331509]
[1731753400533,0.001716,91498.0,91495.0,0.34747803]
[1731753400757,0.001716,91498.0,91497.0,0.109293]
[1731753402589,0.001716,91498.0,91497.0,0.209393]
[1731753408558,0.001716,91498.0,91497.0,0.31845555]
[1731753409853,0.0060978,91500.0,91499.0,0.10929]
[1731753410311,0.0060978,91500.0,91499.0,0.17779]
[1731753411382,0.0060978,91500.0,91499.0,0.3015795]
[1731753413013,0.0060978,91500.0,91499.0,0.340127]
[1731753416470,0.0008578,91508.0,91499.0,0.340127]
[1731753416471,0.0008578,91508.0,91507.0,0.294618]
[1731753416679,0.0008578,91508.0,91507.0,0.40368055]
[1731753416911,0.0008578,91508.0,91507.0,0.36499929]
[1731753419177,0.0008578,91513.0,91512.0,0.109275]
[1731753419421,0.0008578,91513.0,91512.0,0.21833755]
[1731753419872,0.0008578,91513.0,91512.0,0.24133755]
[1731753420084,0.0008578,91513.0,91512.0,0.23293074]
[1731753420789,0.00022775,91520.0,91519.0,0.109266]
[1731753421028,0.00022775,91520.0,91519.0,0.23292174]
[1731753422169,0.00022775,91520.0,91519.0,0.27681581]
[1731753428805,0.049,91531.0,91526.0,0.23291374]
[1731753434993,0.0809,91534.0,91531.0,0.109252]
[1731753437399,0.0809,91544.0,91531.0,0.109252]
[1731753437870,0.0809,91547.0,91531.0,0.154652]
[1731753438091,0.0809,91547.0,91531.0,0.109252]
[1731753438316,0.0809,91547.0,91531.0,0.15434639]
[1731753438987,0.0809,91547.0,91531.0,0.23546252]
[1731753441265,0.0809,91533.0,91531.0,0.15434639]
[1731753441576,0.0809,91533.0,91531.0,0.23546252]
[1731753444944,0.06692597,91533.0,91532.0,0.109251]
[1731753447147,0.06778367,91533.0,91532.0,0.109251]
[1731753448283,0.06778367,91533.0,91532.0,0.19036713]
[1731753448924,0.0008577,91533.0,91532.0,0.19036713]
[1731753449149,0.0833577,91533.0,91532.0,0.19036713]
[1731753451426,0.0008577,91533.0,91532.0,0.19036713]
[1731753453485,0.0822,91542.0,91541.0,0.19035613]
[1731753456178,0.24556255,91542.0,91541.0,0.15368509]
[1731753457940,0.24556255,91542.0,91541.0,0.10924]
[1731753458439,0.11406255,91542.0,91541.0,0.10924]
[1731753458892,0.11406255,91542.0,91538.0,0.109243]
[1731753459109,0.005,91527.0,91512.0,0.02190392]
[1731753459318,0.16336255,91527.0,91526.0,0.1109734]
[1731753459565,0.16336255,91527.0,91526.0,0.15558]
[1731753461373,0.24556255,91527.0,91526.0,0.15558]
[1731753467145,0.24056255,91527.0,91526.0,0.15558]
[1731753467364,0.005,91573.0,91526.0,0.15558]
[1731753467365,0.0799,91545.0,91541.0,0.10924]
[1731753467600,0.005,91543.0,91541.0,0.19035613]
[1731753468059,0.005,91543.0,91541.0,0.10924]
[1731753469046,0.005,91543.0,91541.0,0.15308064]
[1731753476819,0.005,91544.0,91541.0,0.15308064]
[1731753478107,0.0799,91545.0,91541.0,0.15308064]
[1731753478792,0.005,91544.0,91541.0,0.15308064]
[1731753478995,0.0799,91545.0,91541.0,0.15308064]
[1731753479456,0.005,91548.0,91541.0,0.15308064]
[1731753479873,0.0008574,91549.0,91541.0,0.27670951]
[1731753480326,0.0008574,91549.0,91541.0,0.15308064]
[1731753480538,0.1241576,91542.0,91541.0,0.27670951]
[1731753481626,0.0760576,91542.0,91541.0,0.15308064]
[1731753482047,0.0760576,91542.0,91541.0,0.27670951]
[1731753482934,0.0760576,91542.0,91541.0,0.15308064]
[1731753483150,0.0760576,91542.0,91541.0,0.27670951]
[1731753484524,0.0760576,91542.0,91541.0,0.15308064]
[1731753487839,0.1241576,91542.0,91541.0,0.15308064]
[1731753488050,0.23822015,91542.0,91541.0,0.15308064]
[1731753488260,0.23822015,91542.0,91541.0,0.10924]
[1731753490297,0.23822015,91542.0,91511.0,0.31589889]
[1731753490521,0.005,91528.0,91527.0,0.10916556]
[1731753490751,0.1283,91528.0,91527.0,0.10916556]
[1731753490980,0.1283,91528.0,91527.0,0.19032189]
[1731753492105,0.1283,91528.0,91527.0,0.23429085]
[1731753492532,0.1283,91528.0,91527.0,0.15313452]
[1731753493013,0.1283,91528.0,91527.0,0.19032189]
[1731753493934,0.23736255,91528.0,91527.0,0.10916556]
[1731753495008,0.23736255,91528.0,91527.0,0.11002306]
[1731753497933,0.24236255,91528.0,91527.0,0.19117939]
[1731753498160,0.23736255,91528.0,91527.0,0.19117939]
[1731753498369,0.24236255,91528.0,91527.0,0.19117939]
[1731753498832,0.24236255,91528.0,91527.0,0.0008575]
[1731753499062,0.24236255,91528.0,91527.0,0.1101145]
[1731753499567,0.24236255,91528.0,91527.0,0.0008575]
[1731753501534,0.24236255,91528.0,91527.0,0.1101145]
[1731753501756,0.24436255,91528.0,91527.0,0.0008575]
[1731753501998,0.35861855,91528.0,91527.0,0.0008575]
[1731753502237,0.133,91516.0,91515.0,0.09386535]
[1731753502468,0.24206255,91516.0,91515.0,0.31240635]
[1731753503991,0.24206255,91516.0,91515.0,0.35750612]
[1731753505748,0.24206255,91516.0,91515.0,0.31240635]
[1731753506179,0.24206255,91516.0,91515.0,0.09386535]
[1731753506396,0.24206255,91516.0,91514.0,0.1546202]
[1731753506397,0.005,91515.0,91514.0,0.1546202]
[1731753506617,0.11406255,91515.0,91514.0,0.1546202]
[1731753507963,0.15926255,91515.0,91514.0,0.1546202]
[1731753508177,0.24206255,91515.0,91514.0,0.1546202]
[1731753509689,0.24206255,91515.0,91509.0,0.08115633]
[1731753509898,0.10906255,91514.0,91513.0,0.109274]
[1731753510130,0.23706255,91514.0,91513.0,0.109274]
[1731753512734,0.23706255,91514.0,91513.0,0.109274]
[1731753518925,0.23706255,91514.0,91506.0,0.218563]
[1731753518926,0.005,91497.0,91496.0,0.1110098]
[1731753519154,0.23856255,91497.0,91496.0,0.1110098]
[1731753519363,0.24356255,91497.0,91496.0,0.0017158]
[1731753521418,0.24356255,91497.0,91496.0,0.1110098]
[1731753521648,0.23856255,91497.0,91496.0,0.1110098]
[1731753521891,0.23856255,91497.0,91496.0,0.19216613]
[1731753525735,0.23856255,91497.0,91496.0,0.1110098]
[1731753529032,0.23856255,91497.0,91496.0,0.19216613]
[1731753530311,0.23856255,91497.0,91496.0,0.1110098]
[1731753540630,0.23856255,91497.0,91496.0,0.0017158]
[1731753541501,0.23856255,91497.0,91496.0,0.1110098]
[1731753541709,0.23856255,91497.0,91496.0,0.0017158]
[1731753544638,0.23856255,91497.0,91496.0,0.1110098]
[1731753545130,0.23856255,91497.0,91496.0,0.19216613]
[1731753547532,0.23856255,91497.0,91496.0,0.08287213]
[1731753547744,0.23856255,91497.0,91496.0,0.19216613]
[1731753548417,0.23856255,91497.0,91496.0,0.0017158]
[1731753548632,0.24056255,91497.0,91496.0,0.0017158]
[1731753548879,0.23856255,91497.0,91496.0,0.0017158]
[1731753549299,0.26656255,91497.0,91496.0,0.0017158]
[1731753549519,0.37585555,91497.0,91496.0,0.0017158]
[1731753550866,0.38085555,91497.0,91496.0,0.0017158]
[1731753551513,0.38285555,91497.0,91496.0,0.0017158]
[1731753552662,0.48088367,91497.0,91496.0,0.0017158]
[1731753553310,0.38285555,91497.0,91496.0,0.0017158]
[1731753555323,0.46401188,91497.0,91496.0,0.0017158]
[1731753556460,0.38285555,91497.0,91496.0,0.0017158]
[1731753556700,0.26356255,91497.0,91496.0,0.0017158]
[1731753556913,0.35785555,91497.0,91496.0,0.0017158]
[1731753557128,0.24856255,91497.0,91496.0,0.0017158]
[1731753557591,0.35785555,91497.0,91496.0,0.0017158]
[1731753558020,0.38085555,91497.0,91496.0,0.0017158]
[1731753558449,0.27156255,91497.0,91496.0,0.0017158]
[1731753558656,0.38085555,91497.0,91496.0,0.0017158]
[1731753558881,0.38285555,91497.0,91496.0,0.0017158]
[1731753561532,0.38285555,91497.0,91479.0,0.23309943]
[1731753561533,0.005,91480.0,91479.0,0.23309943]
[1731753561742,0.11406255,91480.0,91479.0,0.109314]
[1731753562384,0.10906255,91480.0,91479.0,0.109314]
[1731753566532,0.10906255,91480.0,91479.0,0.1101719]
[1731753566957,0.10906255,91480.0,91479.0,0.0008579]
[1731753568689,0.22037555,91480.0,91479.0,0.0008579]
[1731753568944,0.11106255,91480.0,91479.0,0.0008579]
[1731753569187,0.24337555,91480.0,91479.0,0.0008579]
[1731753569410,0.36757555,91480.0,91479.0,0.0008579]
[1731753571868,0.51460958,91480.0,91479.0,0.0008579]
[1731753572073,0.36757555,91480.0,91479.0,0.0008579]
[1731753572288,0.72923029,91480.0,91479.0,0.0008579]
[1731753572954,0.92510312,91480.0,91479.0,0.0008579]
[1731753573181,0.72923029,91480.0,91479.0,0.00034769]
[1731753574482,0.36757555,91480.0,91479.0,0.00034769]
[1731753574943,0.35792,91474.0,91473.0,0.000858]
[1731753575178,0.95209049,91474.0,91473.0,0.000858]
[1731753576351,0.59076798,91474.0,91473.0,0.000858]
[1731753576589,0.73749612,91474.0,91473.0,0.000858]
[1731753576813,1.31140095,91474.0,91473.0,0.000858]
[1731753577020,0.95187998,91474.0,91473.0,0.000858]
[1731753577227,0.82809455,91474.0,91473.0,0.000858]
[1731753577927,1.07256179,91474.0,91473.0,0.000858]
[1731753578149,0.109357,91444.0,91436.0,0.109365]
[1731753578362,0.109357,91444.0,91443.0,0.16431423]
[1731753578566,0.023,91443.0,91436.0,0.109365]
[1731753578779,0.023,91443.0,91434.0,0.218736]
[1731753578991,0.023,91441.0,91434.0,0.109368]
[1731753579241,0.13236,91441.0,91434.0,0.109368]
[1731753580803,0.023,91436.0,91431.0,0.109371]
[1731753581026,0.023,91434.0,91431.0,0.109371]
[1731753581249,0.10906255,91433.0,91426.0,0.218756]
[1731753581456,0.023,91432.0,91426.0,0.109377]
[1731753581665,0.10906255,91431.0,91424.0,0.04385653]
[1731753581875,0.10906255,91431.0,91426.0,0.218756]
[1731753582088,0.10906255,91431.0,91429.0,0.109373]
[1731753582291,0.10906255,91431.0,91420.0,0.0773]
[1731753582292,0.10906255,91431.0,91430.0,0.109373]
[1731753582506,0.13206255,91431.0,91430.0,0.109373]
[1731753582714,0.13206255,91431.0,91428.0,0.109374]
[1731753582943,0.13206255,91431.0,91429.0,0.109374]
[1731753583786,0.13206255,91431.0,91430.0,0.109373]
[1731753584675,0.13206255,91431.0,91421.0,0.218768]
[1731753584888,0.023,91428.0,91421.0,0.218768]
[1731753585112,0.10906255,91427.0,91423.0,0.218763]
[1731753585334,0.10906255,91427.0,91426.0,0.23316343]
[1731753585831,0.16431423,91445.0,91427.0,0.1293]
[1731753586047,0.16431423,91445.0,91444.0,0.109356]
[1731753586256,0.14403476,91445.0,91444.0,0.109356]
[1731753586463,0.16431423,91455.0,91450.0,0.109349]
[1731753586674,0.16431423,91455.0,91448.0,0.10935]
[1731753586957,0.16431423,91455.0,91447.0,0.109352]
[1731753587158,0.16431423,91455.0,91444.0,0.218713]
[1731753587571,0.10906255,91449.0,91446.0,0.218708]
[1731753587785,0.13206255,91449.0,91448.0,0.109351]
[1731753587998,0.13206255,91449.0,91448.0,0.23313643]
[1731753587999,0.10906255,91449.0,91448.0,0.23313643]
[1731753589511,0.16431423,91467.0,91448.0,0.12378543]
[1731753589717,0.16431423,91467.0,91466.0,0.10933]
[1731753590352,0.218619,91484.0,91456.0,0.12378543]
[1731753590353,0.16631423,91477.0,91460.0,0.0773]
[1731753590585,0.0762,91482.0,91463.0,0.12378543]
[1731753590834,0.109318,91476.0,91464.0,0.218664]
[1731753591051,0.10906255,91475.0,91463.0,0.12378543]
[1731753591518,0.16431423,91480.0,91454.0,0.0773]
[1731753591519,0.109325,91470.0,91454.0,0.0773]
[1731753591728,0.023,91468.0,91452.0,0.005]
[1731753591948,0.023,91466.0,91456.0,0.109342]
[1731753592227,0.218641,91474.0,91455.0,0.12378543]
[1731753592228,0.023,91464.0,91455.0,0.12378543]
[1731753592474,0.16431423,91470.0,91463.0,0.109333]
[1731753592676,0.023,91469.0,91458.0,0.218679]
[1731753592888,0.023,91469.0,91455.0,0.34247143]
[1731753593115,0.023,91467.0,91461.0,0.109336]
[1731753593357,0.023,91465.0,91461.0,0.109336]
[1731753593564,0.023,91465.0,91455.0,0.218686]
[1731753593565,0.023,91463.0,91458.0,0.218679]
[1731753593800,0.13206255,91462.0,91461.0,0.109335]
[1731753595636,0.023,91461.0,91454.0,0.109344]
[1731753595853,0.10906255,91462.0,91454.0,0.109344]
[1731753595854,0.023,91459.0,91454.0,0.109344]
[1731753596097,0.023,91457.0,91454.0,0.109344]
[1731753596300,0.10906255,91456.0,91454.0,0.109344]
[1731753596505,0.10906255,91456.0,91449.0,0.34248443]
[1731753596712,0.10906255,91456.0,91455.0,0.109343]
[1731753599283,0.10906255,91456.0,91455.0,0.190743]
[1731753600577,0.002,91477.0,91469.0,0.109326]
[1731753600807,0.27337678,91470.0,91469.0,0.23311143]
[1731753601234,0.10906255,91470.0,91469.0,0.23311143]
[1731753603696,0.10906255,91470.0,91465.0,0.218661]
[1731753603906,0.10906255,91469.0,91461.0,0.218672]
[1731753604132,0.023,91465.0,91451.0,0.109348]
[1731753604352,0.023,91463.0,91458.0,0.109339]
[1731753604557,0.023,91461.0,91458.0,0.109339]
[1731753604782,0.10906255,91460.0,91452.0,0.218692]
[1731753605001,0.10906255,91460.0,91459.0,0.109338]
[1731753605002,0.13206255,91460.0,91459.0,0.109338]
[1731753606096,0.10906255,91460.0,91459.0,0.109338]
[1731753610954,0.10906255,91460.0,91459.0,0.1534007]
[1731753611181,0.10906255,91460.0,91459.0,0.109338]
[1731753611615,0.10906255,91460.0,91456.0,0.0547]
[1731753611616,0.023,91479.0,91457.0,0.765387]
[1731753611826,0.16431423,91467.0,91466.0,0.10933]
[1731753612030,0.10906255,91467.0,91466.0,0.10933]
[1731753612678,0.10906255,91467.0,91466.0,0.11433]
[1731753612937,0.16431423,91480.0,91479.0,0.109314]
[1731753613155,0.27337678,91480.0,91479.0,0.23309943]
[1731753613364,0.10906255,91480.0,91479.0,0.23309943]
[1731753614290,0.0017162,91493.0,91492.0,0.109299]
[1731753614523,0.11077875,91493.0,91492.0,0.109299]
[1731753618256,0.11077875,91493.0,91492.0,0.114299]
[1731753618467,0.11077875,91493.0,91492.0,0.109299]
[1731753618879,0.11077875,91493.0,91492.0,0.114299]
[1731753620777,0.0017162,91493.0,91492.0,0.119299]
[1731753624913,0.0017162,91493.0,91492.0,0.165499]
[1731753626599,0.0017162,91493.0,91492.0,0.20918]
[1731753627482,0.16552759,91513.0,91512.0,0.109275]
[1731753627737,0.27459014,91513.0,91512.0,0.109275]
[1731753628153,0.11027591,91513.0,91512.0,0.109275]
[1731753633464,0.11027591,91513.0,91512.0,0.15354858]
[1731753639827,0.11027591,91513.0,91512.0,0.15854858]
[1731753641627,0.00121336,91513.0,91512.0,0.16354858]
[1731753642729,0.00121336,91513.0,91511.0,0.12378543]
[1731753642730,0.00121336,91513.0,91511.0,0.0834109]
[1731753642941,0.00121336,91513.0,91512.0,0.109275]
[1731753646650,0.11027591,91513.0,91512.0,0.109275]
[1731753647099,0.15937591,91513.0,91512.0,0.109275]
[1731753658380,0.11027591,91513.0,91512.0,0.109275]
[1731753658793,0.11027591,91513.0,91512.0,0.27160948]
[1731753660090,0.11027591,91513.0,91512.0,0.19044224]
[1731753660777,0.11027591,91513.0,91512.0,0.27160948]
[1731753661002,0.11027591,91513.0,91512.0,0.23296754]
[1731753661239,0.00121336,91513.0,91512.0,0.23296754]
[1731753661898,0.00121336,91513.0,91512.0,0.109275]
[1731753664050,0.00121336,91513.0,91512.0,0.23296754]
[1731753671279,0.00121336,91513.0,91512.0,0.109275]
[1731753671485,0.00121336,91513.0,91512.0,0.23296754]
[1731753675316,0.00121336,91513.0,91512.0,0.62107624]
[1731753676702,0.00121336,91513.0,91512.0,0.86851394]
[1731753678491,0.00121336,91513.0,91512.0,0.67337624]
[1731753678938,3.6e-07,91513.0,91512.0,0.67337624]
[1731753679401,3.6e-07,91513.0,91512.0,0.67541164]
[1731753679627,3.6e-07,91513.0,91512.0,0.67341164]
[1731753680390,3.6e-07,91513.0,91512.0,0.29588874]
[1731753680619,0.85036042,91512.0,91511.0,0.19147205]
[1731753680847,0.74108542,91512.0,91511.0,0.39790791]
[1731753681297,0.24619711,91512.0,91511.0,0.43508734]
[1731753681524,0.13692211,91512.0,91511.0,0.46703312]
[1731753681754,0.13692211,91512.0,91511.0,0.7729067]
[1731753682476,0.04950211,91512.0,91511.0,0.7729067]
[1731753682702,0.02764711,91512.0,91511.0,0.64056023]
[1731753682936,0.02764711,91512.0,91511.0,0.85202347]
[1731753683169,0.00422095,91512.0,91511.0,0.81984404]
[1731753683402,1.6e-07,91514.0,91513.0,0.114274]
[1731753683647,1.6e-07,91514.0,91513.0,0.52921013]
[1731753683875,1.6e-07,91514.0,91513.0,0.65531013]
[1731753684098,0.0802576,91542.0,91527.0,0.195157]
[1731753684099,0.0008576,91542.0,91527.0,0.195157]
[1731753685463,0.0008576,91542.0,91527.0,0.29247349]
[1731753685920,0.0008576,91542.0,91527.0,0.45474617]
[1731753686604,0.0008576,91542.0,91527.0,0.35742968]
[1731753687528,0.0008576,91542.0,91527.0,0.27652968]
[1731753688216,0.0008576,91542.0,91527.0,0.114257]
[1731753688438,0.0008576,91542.0,91527.0,0.27652968]
[1731753689801,0.0008576,91542.0,91527.0,0.32053759]
[1731753690268,0.0008576,91542.0,91527.0,0.15826491]
[1731753690487,0.0008576,91542.0,91527.0,0.32053759]
[1731753694475,0.0763,91533.0,91527.0,0.15326491]
[1731753694712,0.1237152,91528.0,91527.0,0.15326491]
[1731753694948,0.23777775,91528.0,91527.0,0.15326491]
[1731753695220,0.23777775,91528.0,91525.0,0.109259]
[1731753695446,0.005,91522.0,91521.0,0.109264]
[1731753695685,0.23606255,91522.0,91521.0,0.109264]
[1731753701001,0.23606255,91522.0,91516.0,0.327811]
[1731753701002,0.005,91517.0,91516.0,0.327811]
[1731753701224,0.19036255,91517.0,91516.0,0.327811]
[1731753701480,0.23606255,91517.0,91516.0,0.327811]
[1731753703510,0.005,91512.0,91511.0,0.110992]
[1731753703716,0.24106255,91512.0,91511.0,0.001716]
[1731753704429,0.37333755,91512.0,91511.0,0.001716]
[1731753704647,0.26406255,91512.0,91511.0,0.001716]
[1731753706243,0.23606255,91512.0,91511.0,0.110992]
[1731753708973,0.23106255,91512.0,91511.0,0.110992]
[1731753709873,0.10906255,91512.0,91511.0,0.110992]
[1731753710438,0.0813,91520.0,91511.0,0.001716]
[1731753710596,0.005,91516.0,91513.0,0.218548]
[1731753710833,0.11406255,91516.0,91515.0,0.109271]
[1731753711313,0.10906255,91516.0,91515.0,0.109271]
[1731753718176,0.0813,91520.0,91519.0,0.109266]
[1731753718390,0.19036255,91520.0,91519.0,0.109266]
[1731753720398,0.18536255,91520.0,91519.0,0.109266]
[1731753720607,0.19036255,91520.0,91519.0,0.109266]
[1731753727753,0.005,91516.0,91515.0,0.109271]
[1731753728001,0.109275,91512.0,91511.0,0.001716]
[1731753728242,0.45352006,91512.0,91511.0,0.001716]
[1731753728481,0.45852006,91512.0,91511.0,0.001716]
[1731753728701,0.43152006,91512.0,91511.0,0.001716]
[1731753729136,0.26806255,91512.0,91511.0,0.001716]
[1731753730048,0.26806255,91512.0,91511.0,0.110992]
[1731753733471,0.35124506,91512.0,91511.0,0.001716]
[1731753734815,0.43242757,91512.0,91511.0,0.001716]
[1731753735028,0.54670257,91512.0,91511.0,0.001716]
[1731753735245,0.1382,91498.0,91497.0,0.109292]
[1731753735462,0.24726255,91498.0,91497.0,0.109292]
[1731753736389,0.24926255,91498.0,91497.0,0.109292]
[1731753737055,0.24726255,91498.0,91497.0,0.109292]
[1731753739496,0.23726255,91498.0,91497.0,0.109292]